{"text_format":"3","workbook":"xlsx","n_sheets":3,"sheets":["قائمة الطلاب","لائحة الفصول","تفاصيل الطلاب"],"not_rendered":{"images":2,"defined_names":8},"read":"whole","date_system":"1900"}

{"sheet":"قائمة الطلاب","index":0,"n_rows":8,"n_cols":13,"rows_kept":8,"merged":[[1,2,2,3],[1,4,1,11],[2,4,2,11],[6,12,8,16]]}
[]
[null,null,"قائمة الطلاب",null,"انتقل إلى كشف الصفوف"]
[{"$nulls":4},"الانتقال إلى تفاصيل الطلاب"]
[null,null,"اسم الطالب","البريد الإلكتروني","هاتف المنزل","هاتف جوال","تاريخ الميلاد","جهة الاتصال بالطوارئ","هاتف الطوارئ","الطبيب","رقم هاتف الطبيب","  "]
[null,null,"الاسم 1","عنوان البريد الإلكتروني","هاتف المنزل","هاتف جوال","التاريخ","جهة الاتصال 1","هاتف الطوارئ","الطبيب 1","رقم هاتف الطبيب"]
[null,null,"الاسم 2","عنوان البريد الإلكتروني","هاتف المنزل","هاتف جوال","التاريخ","جهة الاتصال 2","هاتف الطوارئ","الطبيب 2","رقم هاتف الطبيب"]
[null,null,"الاسم 3","عنوان البريد الإلكتروني","هاتف المنزل","هاتف جوال","التاريخ","جهة الاتصال 3","هاتف الطوارئ","الطبيب 3","رقم هاتف الطبيب",null,"تلميح: لإضافة المزيد من الطلاب، في الخلية الأخيرة من الجدول، اضغط على المفتاح Tab."]
[null,null,"الاسم 4","عنوان البريد الإلكتروني","هاتف المنزل","هاتف جوال","التاريخ","جهة الاتصال 4","هاتف الطوارئ","الطبيب 4","رقم هاتف الطبيب"]

{"sheet":"لائحة الفصول","index":1,"n_rows":12,"n_cols":7,"rows_kept":12,"merged":[[1,2,2,2],[1,3,2,3],[1,4,1,6],[2,4,2,6]]}
[]
[null,null,"لائحة الفصول","Graphic Design Institute","الانتقال إلى قائمة الطلاب"]
[{"$nulls":4},"الانتقال إلى تفاصيل الطلاب"]
[null,null,"المادة الدراسية","اسم الدورة التدريبية","تاريخ البدء","التاريخ"]
[null,null,"المعلم","المعلم 1","تاريخ الانتهاء","التاريخ"]
[null,null,"الطلاب المسجلين",{"$f":"COUNTA(لائحة_الطلاب[اسم الطالب])","v":4}]
[]
[null,null,"اسم الطالب","البريد الإلكتروني","هاتف المنزل","هاتف جوال","  "]
[null,null,"الاسم 1",{"$f":"IFERROR(VLOOKUP(لائحة_الطلاب[[#This Row],[اسم الطالب]],الطلاب[],2),\"\")","v":"عنوان البريد الإلكتروني"},{"$f":"IFERROR(VLOOKUP(لائحة_الطلاب[[#This Row],[اسم الطالب]],الطلاب[],3),\"\")","v":"هاتف المنزل"},{"$f":"IFERROR(VLOOKUP(لائحة_الطلاب[[#This Row],[اسم الطالب]],الطلاب[],4),\"\")","v":"هاتف جوال"}]
[null,null,"الاسم 2",{"$f":"IFERROR(VLOOKUP(لائحة_الطلاب[[#This Row],[اسم الطالب]],الطلاب[],2),\"\")","v":"عنوان البريد الإلكتروني"},{"$f":"IFERROR(VLOOKUP(لائحة_الطلاب[[#This Row],[اسم الطالب]],الطلاب[],3),\"\")","v":"هاتف المنزل"},{"$f":"IFERROR(VLOOKUP(لائحة_الطلاب[[#This Row],[اسم الطالب]],الطلاب[],4),\"\")","v":"هاتف جوال"}]
[null,null,"الاسم 3",{"$f":"IFERROR(VLOOKUP(لائحة_الطلاب[[#This Row],[اسم الطالب]],الطلاب[],2),\"\")","v":"عنوان البريد الإلكتروني"},{"$f":"IFERROR(VLOOKUP(لائحة_الطلاب[[#This Row],[اسم الطالب]],الطلاب[],3),\"\")","v":"هاتف المنزل"},{"$f":"IFERROR(VLOOKUP(لائحة_الطلاب[[#This Row],[اسم الطالب]],الطلاب[],4),\"\")","v":"هاتف جوال"}]
[null,null,"الاسم 4",{"$f":"IFERROR(VLOOKUP(لائحة_الطلاب[[#This Row],[اسم الطالب]],الطلاب[],2),\"\")","v":"عنوان البريد الإلكتروني"},{"$f":"IFERROR(VLOOKUP(لائحة_الطلاب[[#This Row],[اسم الطالب]],الطلاب[],3),\"\")","v":"هاتف المنزل"},{"$f":"IFERROR(VLOOKUP(لائحة_الطلاب[[#This Row],[اسم الطالب]],الطلاب[],4),\"\")","v":"هاتف جوال"}]

{"sheet":"تفاصيل الطلاب","index":2,"n_rows":13,"n_cols":4,"rows_kept":13,"merged":[[1,2,2,2],[1,3,1,4],[2,3,2,4],[3,2,3,3]]}
[]
[null,null,"تفاصيل الطلاب","الانتقال إلى قائمة الطلاب"]
[{"$nulls":3},"انتقل إلى كشف الصفوف"]
[null,null,"تلميح: حدد طالباً من القائمة المنسدلة في الخلية D5 لتحديث تفاصيل الطالب"]
[null,null,"اسم الطالب","الاسم 1"]
[null,null,"البريد الإلكتروني",{"$f":"IFERROR(VLOOKUP(اسم_الطالب,الطلاب[],2,FALSE),\"\")","v":"عنوان البريد الإلكتروني"}]
[null,null,"هاتف المنزل",{"$f":"IFERROR(VLOOKUP(اسم_الطالب,الطلاب[],3,FALSE),\"\")","v":"هاتف المنزل"}]
[null,null,"هاتف جوال",{"$f":"IFERROR(VLOOKUP(اسم_الطالب,الطلاب[],4,FALSE),\"\")","v":"هاتف جوال"}]
[null,null,"تاريخ الميلاد",{"$f":"IFERROR(VLOOKUP(اسم_الطالب,الطلاب[],5,FALSE),\"\")","v":"التاريخ"}]
[null,null,"جهة الاتصال بالطوارئ",{"$f":"IFERROR(VLOOKUP(اسم_الطالب,الطلاب[],6,FALSE),\"\")","v":"جهة الاتصال 1"}]
[null,null,"هاتف الطوارئ",{"$f":"IFERROR(VLOOKUP(اسم_الطالب,الطلاب[],7,FALSE),\"\")","v":"هاتف الطوارئ"}]
[null,null,"الطبيب",{"$f":"IFERROR(VLOOKUP(اسم_الطالب,الطلاب[],8,FALSE),\"\")","v":"الطبيب 1"}]
[null,null,"رقم هاتف الطبيب",{"$f":"IFERROR(VLOOKUP(اسم_الطالب,الطلاب[],9,FALSE),\"\")","v":"رقم هاتف الطبيب"}]